fUST/lending_fUST_20251010
["ID","MTS","AMOUNT","RATE_DAILY","PERIOD"]
[390562015,1760083850968,-616.2,0.00017534,2]
[390562017,1760083850978,-274.31233955,0.00017534,2]
[390562019,1760083850987,-500.0,0.00017534,2]
[390562021,1760083850997,-2003.86,0.00017534,2]
[390562023,1760083851007,-500.0,0.00017534,2]
[390562025,1760083851016,-500.0,0.00017534,2]
[390562027,1760083851025,-1996.43,0.00017534,2]
[390562029,1760083851035,-500.0,0.00017534,2]
[390562031,1760083851044,-217.454934,0.00017534,2]
[390562033,1760083851054,-217.454934,0.00017534,2]
[390562035,1760083851063,-504.57473362,0.00017534,2]
[390562037,1760083851072,-217.454934,0.00017534,2]
[390562039,1760083851081,-500.0,0.00017534,2]
[390562041,1760083851091,-217.454934,0.00017534,2]
[390562043,1760083851100,-500.0,0.00017534,2]
[390562045,1760083851110,-2336.93,0.00017534,2]
[390562047,1760083851119,-1198.94,0.00017534,2]
[390562049,1760083851128,-151.0,0.00017534,2]
[390562051,1760083851137,-151.0,0.00017534,2]
[390562053,1760083851147,-1294.33,0.00017534,2]
[390562055,1760083851156,-151.0,0.00017534,2]
[390562057,1760083851165,-607.78352749,0.00017534,2]
[390562059,1760083851174,-718.57,0.00017534,2]
[390562061,1760083851184,-500.0,0.00017534,2]
[390562063,1760083851193,-429.06226374,0.00017538,2]
[390562065,1760083851202,-722.60186189,0.00017573,2]
[390562067,1760083851211,-2887.51704012,0.00017573,2]
[390562069,1760083851221,-250.59301489,0.00017573,2]
[390562071,1760083851230,-1002.37205957,0.00017573,2]
[390562073,1760083851240,-2255.33713403,0.00017573,2]
[390562075,1760083851249,-4009.48823828,0.00017573,2]
[390562077,1760083851259,-6264.82537232,0.00017573,2]
[390562079,1760083851268,-9012.3271876,0.00017573,2]
[390562081,1760083851278,-500.0,0.00017607,2]
[390562083,1760083851287,-413.60686754,0.00017607,2]
[390562085,1760083851297,-500.0,0.00017607,2]
[390562087,1760083851306,-372.10225396,0.00017607,2]
[390562089,1760083851315,-180.50174715,0.00017698,2]
[390562091,1760083851325,-247.39966697,0.00017698,2]
[390562093,1760083851334,-247.21253277,0.00017698,2]
[390562095,1760083851344,-913.0,0.00017698,2]
[390562097,1760083851353,-173.87863053,0.000177,2]
[390562099,1760083851362,-151.0,0.000177,2]
[390562101,1760083851372,-177.16033443,0.00017708,2]
[390562103,1760083851382,-913.0,0.00017753,2]
[390562105,1760083851391,-388.0,0.00017779,2]
[390562107,1760083851400,-173.87863053,0.000178,2]
[390562109,1760083851410,-151.0,0.000178,2]
[390562111,1760083851419,-153.717768,0.000178,4]
[390562113,1760083851428,-200.0,0.00017807,2]
[390562115,1760083851437,-913.0,0.00017808,2]
[390562117,1760083851446,-113.0468297,0.00017808,2]
[390562119,1760083851457,-500.0,0.00017808,2]
[390562121,1760083851466,-615.6,0.00017808,2]
[390562123,1760083851475,-874.68,0.00017808,2]
[390562125,1760083851484,-300.0,0.00017808,2]
[390562127,1760083851494,-500.0,0.00017808,2]
[390562129,1760083851503,-500.0,0.00017808,2]
[390562131,1760083851512,-500.0,0.00017808,2]
[390562133,1760083851522,-562.67448772,0.00017808,2]
[390562135,1760083851531,-500.0,0.00017808,2]
[390562137,1760083851539,-504.6195507,0.00017808,2]
[390562139,1760083851549,-500.0,0.00017808,2]
[390562141,1760083851558,-503.68,0.00017808,2]
[390562143,1760083851567,-500.0,0.00017808,2]
[390562145,1760083851578,-850.34,0.00017808,2]
[390562147,1760083851587,-1184.89,0.00017808,2]
[390562148,1760083851597,-500.0,0.00017808,2]
[390562150,1760083851606,-500.0,0.00017808,2]
[390562152,1760083851616,-500.0,0.00017808,2]
[390562153,1760083851625,-500.0,0.00017808,2]
[390562154,1760083851635,-500.0,0.00017808,2]
[390562155,1760083851644,-500.91900089,0.00017808,2]
[390562156,1760083851653,-500.0,0.00017808,2]
[390562157,1760083851663,-500.0,0.00017808,2]
[390562158,1760083851673,-1009.81,0.00017808,2]
[390562159,1760083851682,-892.68,0.00017808,2]
[390562160,1760083851692,-500.0,0.00017808,2]
[390562161,1760083851702,-170.18469437,0.00017808,2]
[390562162,1760083851711,-500.0,0.00017808,2]
[390562163,1760083851721,-313.55483031,0.00017808,2]
[390562164,1760083851731,-971.38,0.00017808,2]
[390562165,1760083851740,-500.0,0.00017808,2]
[390562166,1760083851750,-236.38836431,0.00017808,2]
[390562167,1760083851759,-838.62,0.00017808,2]
[390562168,1760083851770,-500.0,0.00017808,2]
[390562169,1760083851779,-446.2391071,0.00017808,2]
[390562170,1760083851789,-500.0,0.00017808,2]
[390562171,1760083851799,-440.65556953,0.00017808,2]
[390562172,1760083851811,-500.0,0.00017808,2]
[390562173,1760083851821,-434.65899531,0.00017808,2]
[390562174,1760083851832,-500.0,0.00017808,2]
[390562175,1760083851842,-500.0,0.00017808,2]
[390562176,1760083851853,-500.0,0.00017808,2]
[390562177,1760083851863,-227.8891446,0.00017808,2]
[390562178,1760083851872,-642.4084925,0.00017808,2]
[390562179,1760083851882,-500.0,0.00017808,2]
[390562180,1760083851891,-2085.53,0.00017808,2]
[390562181,1760083851901,-151.0,0.00017808,2]
[390562182,1760083851910,-500.0,0.00017808,2]
[390562184,1760083851920,-1324.92,0.00017808,2]
[390562186,1760083851929,-500.0,0.00017808,2]
[390562188,1760083851938,-151.0,0.00017808,2]
[390562190,1760083851948,-500.0,0.00017808,2]
[390562192,1760083851957,-151.0,0.00017808,2]
[390562194,1760083851966,-500.0,0.00017808,2]
[390562196,1760083851975,-923.07,0.00017808,2]
[390562198,1760083851984,-857.35,0.00017808,2]
[390562200,1760083851994,-500.0,0.00017808,2]
[390562202,1760083852003,-500.0,0.00017808,2]
[390562204,1760083852012,-151.0,0.00017808,2]
[390562206,1760083852022,-151.0,0.00017808,2]
[390562208,1760083852031,-179.36266348,0.00017808,2]
[390562210,1760083852041,-6921.08,0.00017808,2]
[390562212,1760083852050,-151.0,0.00017808,2]
[390562214,1760083852060,-500.0,0.00017808,2]
[390562216,1760083852069,-500.0,0.00017808,2]
[390562218,1760083852079,-500.0,0.00017808,2]
[390562220,1760083852089,-863.76,0.00017808,2]
[390562222,1760083852099,-915.46,0.00017808,2]
[390562224,1760083852108,-500.0,0.00017808,2]
[390562226,1760083852117,-2699.43,0.00017808,2]
[390562228,1760083852127,-408.99000757,0.00017808,2]
[390562230,1760083852136,-500.0,0.00017808,2]
[390562232,1760083852145,-930.19,0.00017808,2]
[390562234,1760083852155,-588.03,0.00017808,2]
[390562236,1760083852164,-500.0,0.00017808,2]
[390562238,1760083852173,-615.05,0.00017808,2]
[390562240,1760083852184,-500.0,0.00017808,2]
[390562242,1760083852194,-588.35,0.00017808,2]
[390562244,1760083852204,-919.43,0.00017808,2]
[390562246,1760083852213,-500.0,0.00017808,2]
[390562248,1760083852223,-500.0,0.00017808,2]
[390562250,1760083852232,-757.64,0.00017808,2]
[390562252,1760083852241,-1656.34,0.00017808,2]
[390562254,1760083852252,-1111.0,0.00017808,2]
[390562256,1760083852261,-758.1,0.00017808,2]
[390562258,1760083852271,-3316.25,0.00017808,2]
[390562260,1760083852280,-348.50628619,0.00017808,2]
[390562262,1760083852290,-500.0,0.00017808,2]
[390562264,1760083852299,-6323.8,0.00017808,2]
[390562266,1760083852310,-500.0,0.00017808,2]
[390562268,1760083852319,-2064.6,0.00017808,2]
[390562270,1760083852328,-2059.01,0.00017808,2]
[390562272,1760083852338,-500.0,0.00017808,2]
[390562274,1760083852347,-5772.05,0.00017808,2]
[390562276,1760083852357,-500.0,0.00017808,2]
[390562278,1760083852367,-500.0,0.00017808,2]
[390562280,1760083852377,-500.0,0.00017808,2]
[390562282,1760083852386,-1468.2,0.00017808,2]
[390562284,1760083852396,-2093.4,0.00017808,2]
[390562286,1760083852405,-849.1,0.00017808,2]
[390562288,1760083852415,-500.0,0.00017808,2]
[390562290,1760083852424,-500.0,0.00017808,2]
[390562292,1760083852435,-151.0,0.00017808,2]
[390562294,1760083852445,-151.0,0.00017808,2]
[390562297,1760083852456,-500.0,0.00017808,2]
[390562299,1760083852466,-151.0,0.00017808,2]
[390562301,1760083852476,-500.0,0.00017808,2]
[390562303,1760083852485,-500.0,0.00017808,2]
[390562305,1760083852494,-500.0,0.00017808,2]
[390562307,1760083852503,-151.0,0.00017808,2]
[390562309,1760083852513,-2991.67,0.00017808,2]
[390562311,1760083852523,-500.0,0.00017808,2]
[390562313,1760083852532,-926.24,0.00017808,2]
[390562315,1760083852541,-867.28,0.00017808,2]
[390562317,1760083852551,-500.0,0.00017808,2]
[390562319,1760083852561,-500.0,0.00017808,2]
[390562321,1760083852570,-792.19,0.00017808,2]
[390562323,1760083852580,-500.0,0.00017808,2]
[390562325,1760083852589,-596.13888638,0.00017808,2]
[390562327,1760083852599,-1294.14,0.00017808,2]
[390562329,1760083852608,-500.0,0.00017808,2]
[390562331,1760083852618,-512.32,0.00017808,2]
[390562333,1760083852627,-500.0,0.00017808,2]
[390562335,1760083852636,-320.003172,0.00017808,2]
[390562337,1760083852647,-320.003172,0.00017808,2]
[390562339,1760083852656,-320.003172,0.00017808,2]
[390562341,1760083852666,-320.003182,0.00017808,2]
[390562343,1760083852676,-860.19,0.00017808,2]
[390562345,1760083852686,-952.43,0.00017808,2]
[390562347,1760083852700,-684.8,0.00017808,2]
[390562349,1760083852710,-579.9494024,0.00017808,2]
[390562351,1760083852719,-1392.68,0.00017808,2]
[390562354,1760083852729,-500.0,0.00017808,2]
[390562355,1760083852739,-883.77,0.00017808,2]
[390562358,1760083852749,-416.78895923,0.00017808,2]
[390562393,1760083853084,-614.65,0.0001726,2]
[390562395,1760083853094,-500.0,0.00017534,2]
[390562397,1760083853104,-83.21104077,0.00017808,2]
[390562399,1760083853113,-722.8,0.00017808,2]
[390562401,1760083853123,-509.17063531,0.00017808,2]
[390562403,1760083853134,-3583.68936469,0.00017808,2]
[390562405,1760083853144,-500.0,0.00017808,2]
[390562407,1760083853153,-500.0,0.00017808,2]
[390562409,1760083853163,-1363.86,0.00017808,2]
[390562411,1760083853173,-500.0,0.00017808,2]
[390562413,1760083853182,-500.0,0.00017808,2]
[390562415,1760083853192,-500.0,0.00017808,2]
[390562417,1760083853201,-500.0,0.00017808,2]
[390562419,1760083853210,-500.0,0.00017808,2]
[390562421,1760083853219,-544.05,0.00017808,2]
[390562423,1760083853229,-500.0,0.00017808,2]
[390562425,1760083853239,-500.0,0.00017808,2]
[390562427,1760083853248,-725.67,0.00017808,2]
[390562429,1760083853257,-519.1,0.00017808,2]
[390562431,1760083853267,-2605.72,0.00017808,2]
[390562433,1760083853276,-1069.32,0.00017808,2]
[390562435,1760083853286,-500.0,0.00017808,2]
[390562437,1760083853295,-500.0,0.00017808,2]
[390562439,1760083853304,-500.0,0.00017808,2]
[390562441,1760083853313,-151.0,0.00017808,2]
[390562443,1760083853323,-500.0,0.00017808,2]
[390562445,1760083853332,-788.96,0.00017808,2]
[390562447,1760083853341,-711.83,0.00017808,2]
[390562449,1760083853351,-4223.7,0.00017808,2]
[390562451,1760083853359,-151.0,0.00017808,2]
[390562453,1760083853370,-405.781744,0.00017808,2]
[390562455,1760083853379,-500.0,0.00017808,2]
[390562457,1760083853388,-405.781744,0.00017808,2]
[390562459,1760083853398,-1019.89,0.00017808,2]
[390562461,1760083853407,-151.0,0.00017808,2]
[390562463,1760083853416,-405.781744,0.00017808,2]
[390562465,1760083853426,-151.0,0.00017808,2]
[390562467,1760083853434,-405.781748,0.00017808,2]
[390562469,1760083853444,-5148.42,0.00017808,2]
[390562471,1760083853454,-500.0,0.00017808,2]
[390562472,1760083853463,-901.93,0.00017808,2]
[390562474,1760083853473,-151.0,0.00017808,2]
[390562476,1760083853482,-500.0,0.00017808,2]
[390562478,1760083853491,-151.0,0.00017808,2]
[390562480,1760083853501,-151.0,0.00017808,2]
[390562482,1760083853510,-616.2,0.00017808,2]
[390562484,1760083853519,-500.0,0.00017808,2]
[390562487,1760083853530,-2003.86,0.00017808,2]
[390562489,1760083853539,-500.0,0.00017808,2]
[390562490,1760083853549,-500.0,0.00017808,2]
[390562492,1760083853558,-1996.43,0.00017808,2]
[390562494,1760083853568,-500.0,0.00017808,2]
[390562496,1760083853577,-217.454934,0.00017808,2]
[390562498,1760083853586,-217.454934,0.00017808,2]
[390562500,1760083853596,-217.454934,0.00017808,2]
[390562502,1760083853606,-500.0,0.00017808,2]
[390562504,1760083853615,-217.454942,0.00017808,2]
[390562506,1760083853625,-53.46902126,0.00017808,2]
[390562509,1760083853637,-446.53097874,0.00017808,2]
[390562511,1760083853647,-2141.35696984,0.00017808,2]
[390562513,1760083853658,-195.57303016,0.00017808,2]
[390562515,1760083853668,-1198.94,0.00017808,2]
[390562517,1760083853677,-151.0,0.00017808,2]
[390562519,1760083853687,-151.0,0.00017808,2]
[390562521,1760083853696,-1294.33,0.00017808,2]
[390562523,1760083853705,-151.0,0.00017808,2]
[390562525,1760083853714,-718.57,0.00017808,2]
[390562527,1760083853724,-500.0,0.00017808,2]
[390562529,1760083853733,-913.0,0.00017862,2]
[390562531,1760083853742,-447.156737,0.00017884,2]
[390562533,1760083853753,-206.84361796,0.00017894,2]
[390562575,1760083854187,-157.757348,0.00016438,2]
[390562577,1760083854197,-500.0,0.00016438,2]
[390562579,1760083854206,-500.0,0.00016712,2]
[390562580,1760083854215,-500.0,0.00016986,2]
[390562581,1760083854224,-614.65,0.00017534,2]
[390562582,1760083854235,-815.47,0.00017534,2]
[390562583,1760083854244,-500.0,0.00017808,2]
[390562584,1760083854252,-815.47,0.00017808,2]
[390562585,1760083854261,-614.65,0.00017808,2]
[390562586,1760083854270,-433.15638204,0.00017894,2]
[390562587,1760083854279,-913.0,0.00017917,2]
[390562588,1760083854287,-420.0,0.00017963,2]
[390562589,1760083854297,-388.0,0.00017967,2]
[390562590,1760083854305,-1000.0,0.00017971,2]
[390562592,1760083854314,-501.76080862,0.00017971,2]
[390562594,1760083854325,-1000.92345823,0.00017971,2]
[390562596,1760083854334,-1000.0,0.00017971,2]
[390562598,1760083854344,-1000.0,0.00017971,2]
[390562600,1760083854353,-1000.0,0.00017971,2]
[390562602,1760083854362,-1000.0,0.00017971,2]
[390562604,1760083854371,-1000.0,0.00017971,2]
[390562606,1760083854381,-1000.0,0.00017971,2]
[390562608,1760083854391,-1000.0,0.00017971,2]
[390562610,1760083854400,-417.20128313,0.00017971,2]
[390562612,1760083854409,-1000.0,0.00017971,2]
[390562614,1760083854418,-913.0,0.00017972,2]
[390562616,1760083854427,-682.21215428,0.00017974,2]
[390562618,1760083854438,-549.78784572,0.00017974,2]
[390562620,1760083854447,-852.7298755,0.00017975,2]
[390562622,1760083854455,-1000.0,0.00017975,2]
[390562624,1760083854465,-1000.0,0.00017975,2]
[390562626,1760083854474,-1002.09367115,0.00017975,2]
[390562628,1760083854483,-1000.0,0.00017975,2]
[390562630,1760083854492,-1000.0,0.00017975,2]
[390562632,1760083854501,-1000.0,0.00017975,2]
[390562634,1760083854510,-1000.0,0.00017976,2]
[390562636,1760083854520,-1000.0,0.00017976,2]
[390562638,1760083854529,-284.49598855,0.00017976,2]
[390562640,1760083854538,-1000.0,0.00017976,2]
[390562642,1760083854548,-1013.89381824,0.00017976,2]
[390562644,1760083854557,-1000.0,0.00017976,2]
[390562646,1760083854567,-1001.55939196,0.00017976,2]
[390562648,1760083854577,-1000.0,0.00017976,2]
[390562650,1760083854587,-1000.0,0.00017976,2]
[390562652,1760083854597,-1000.0,0.00017976,2]
[390562655,1760083854606,-1000.0,0.00017976,2]
[390562657,1760083854616,-1001.14713098,0.00017976,2]
[390562659,1760083854626,-217.0,0.00018,3]
[390562661,1760083854635,-174.50994558,0.00018,2]
[390562662,1760083854644,-1375.29830742,0.00018,2]
[390562664,1760083854652,-642.1211986,0.00018,2]
[390562666,1760083854661,-1444.0410955,0.00018,2]
[390562669,1760083854671,-197.63873498,0.00018,2]
[390562670,1760083854680,-315.8381587,0.00018,2]
[390562672,1760083854690,-161.91121063,0.00018,2]
[390562674,1760083854699,-36027.08344697,0.00018,2]
[390562720,1760083855109,-500.0,0.00016438,2]
[390562722,1760083855118,-500.0,0.00016438,2]
[390562724,1760083855128,-500.0,0.00016438,2]
[390562726,1760083855137,-500.0,0.00016438,2]
[390562728,1760083855146,-500.0,0.00016438,2]
[390562730,1760083855155,-500.0,0.00016438,2]
[390562731,1760083855164,-501.49808194,0.00016712,2]
[390562733,1760083855174,-222.320223,0.00016712,2]
[390562736,1760083855183,-503.84759013,0.00016712,2]
[390562737,1760083855192,-500.0,0.00016712,2]
[390562740,1760083855202,-504.73297994,0.00016712,2]
[390562742,1760083855211,-151.0,0.00016986,2]
[390562744,1760083855220,-151.0,0.00016986,2]
[390562746,1760083855229,-576.64651153,0.00016986,2]
[390562748,1760083855238,-9811.83926349,0.00018,2]
[390562750,1760083855249,-473.8569137,0.00018,2]
[390562887,1760083921783,1608.99325003,0.00029607,60]
[390562888,1760084020991,154.882854,0.0002352,30]
[390562890,1760084075800,182.0507934,0.0002876,120]
[390562891,1760084115370,1000.0,0.00028,120]
[390562892,1760084149005,2355.15008721,0.000287,120]
[390562893,1760084170206,666.0,0.00015413,2]
[390562902,1760084253110,200.0,0.00028265,120]
[390562903,1760084263240,1000.0,0.00027397,120]
[390562904,1760084277069,479.0,0.00029549,60]
[390562905,1760084387485,167.6574436,7.82e-05,2]
[390562913,1760084492479,200.0,0.00028723,120]
[390562915,1760084580587,1439.64893285,0.00029573,120]
[390562916,1760084610642,153.717768,0.00024,30]
[390562929,1760084803181,178.830551,0.00015218,2]
[390562931,1760084852453,200.0,0.00028537,120]
[390562937,1760084913083,301.9999994,0.0002,120]
[390562938,1760084917983,525.16671345,0.0001,2]
[390562958,1760085036373,-323.44693728,0.00015681,2]
[390562959,1760085036386,-171.0,0.00015781,3]
[390562960,1760085036395,-215.497032,0.00015794,2]
[390562961,1760085036404,-371.96397787,0.00016281,2]
[390562962,1760085036413,-565.0,0.00016337,2]
[390562963,1760085036422,-300.0,0.00016337,2]
[390562964,1760085036431,-171.20339965,0.00016337,2]
[390562965,1760085036440,-268.2940422,0.00016338,2]
[390562966,1760085036449,-46959.22183416,0.00016338,2]
[390562996,1760085037909,-824.8304546,0.00016338,2]
[390562998,1760085037919,-359.45643935,0.00016437,2]
[390563000,1760085037929,-348.14794274,0.00016437,2]
[390563002,1760085037938,-703.91,0.00016438,2]
[390563004,1760085037947,-500.0,0.00016438,2]
[390563006,1760085037956,-500.0,0.00016438,2]
[390563008,1760085037966,-500.0,0.00016438,2]
[390563011,1760085037976,-500.0,0.00016438,2]
[390563013,1760085037986,-359.67318463,0.00016438,2]
[390563015,1760085037995,-500.0,0.00016438,2]
[390563017,1760085038005,-500.0,0.00016438,2]
[390563019,1760085038014,-500.0,0.00016438,2]
[390563021,1760085038023,-500.0,0.00016438,2]
[390563023,1760085038032,-565.37,0.00016438,2]
[390563024,1760085038042,-500.0,0.00016438,2]
[390563026,1760085038052,-500.0,0.00016438,2]
[390563028,1760085038061,-838.24,0.00016438,2]
[390563030,1760085038071,-502.30765809,0.00016438,2]
[390563033,1760085038081,-300.0,0.00016438,2]
[390563035,1760085038091,-500.0,0.00016438,2]
[390563036,1760085038101,-500.0,0.00016438,2]
[390563038,1760085038111,-399.44342891,0.00016438,2]
[390563040,1760085038124,-242.78753328,0.00016438,2]
[390563042,1760085038135,-500.0,0.00016438,2]
[390563044,1760085038146,-500.0,0.00016438,2]
[390563046,1760085038157,-500.0,0.00016438,2]
[390563048,1760085038168,-500.0,0.00016438,2]
[390563050,1760085038178,-500.0,0.00016438,2]
[390563052,1760085038188,-502.87965002,0.00016438,2]
[390563055,1760085038201,-500.0,0.00016438,2]
[390563056,1760085038211,-500.0,0.00016438,2]
[390563058,1760085038221,-500.0,0.00016438,2]
[390563060,1760085038231,-500.0,0.00016438,2]
[390563062,1760085038241,-500.0,0.00016438,2]
[390563064,1760085038251,-500.0,0.00016438,2]
[390563067,1760085038261,-500.0,0.00016438,2]
[390563069,1760085038271,-251.49135415,0.00016438,2]
[390563071,1760085038282,-500.0,0.00016438,2]
[390563073,1760085038290,-500.0,0.00016438,2]
[390563074,1760085038300,-500.0,0.00016438,2]
[390563077,1760085038310,-500.0,0.00016438,2]
[390563079,1760085038319,-500.0,0.00016438,2]
[390563081,1760085038329,-500.99212781,0.00016438,2]
[390563083,1760085038342,-500.0,0.00016438,2]
[390563085,1760085038354,-500.0,0.00016438,2]
[390563086,1760085038363,-500.0,0.00016438,2]
[390563088,1760085038372,-500.0,0.00016438,2]
[390563090,1760085038382,-500.0,0.00016438,2]
[390563092,1760085038391,-500.0,0.00016438,2]
[390563094,1760085038401,-500.0,0.00016438,2]
[390563097,1760085038410,-500.0,0.00016438,2]
[390563098,1760085038420,-500.0,0.00016438,2]
[390563100,1760085038429,-500.0,0.00016438,2]
[390563102,1760085038438,-501.96365242,0.00016438,2]
[390563105,1760085038449,-500.0,0.00016438,2]
[390563106,1760085038458,-500.0,0.00016438,2]
[390563108,1760085038470,-500.0,0.00016438,2]
[390563111,1760085038480,-500.0,0.00016438,2]
[390563113,1760085038489,-1274.73,0.00016438,2]
[390563114,1760085038498,-500.0,0.00016438,2]
[390563116,1760085038508,-500.0,0.00016438,2]
[390563119,1760085038517,-500.0,0.00016438,2]
[390563121,1760085038526,-546.76,0.00016438,2]
[390563123,1760085038536,-500.0,0.00016438,2]
[390563125,1760085038546,-500.0,0.00016438,2]
[390563126,1760085038556,-500.0,0.00016438,2]
[390563129,1760085038565,-500.0,0.00016438,2]
[390563130,1760085038574,-500.0,0.00016438,2]
[390563133,1760085038584,-500.0,0.00016438,2]
[390563135,1760085038594,-502.16497774,0.00016438,2]
[390563136,1760085038602,-500.0,0.00016438,2]
[390563137,1760085038612,-500.0,0.00016438,2]
[390563139,1760085038621,-500.0,0.00016438,2]
[390563140,1760085038631,-500.0,0.00016438,2]
[390563141,1760085038640,-504.06460321,0.00016438,2]
[390563142,1760085038650,-500.0,0.00016438,2]
[390563143,1760085038660,-410.00552209,0.00016438,2]
[390563144,1760085038669,-500.0,0.00016438,2]
[390563145,1760085038678,-500.0,0.00016438,2]
[390563146,1760085038687,-500.0,0.00016438,2]
[390563147,1760085038697,-500.0,0.00016438,2]
[390563148,1760085038707,-500.0,0.00016438,2]
[390563149,1760085038716,-500.0,0.00016438,2]
[390563150,1760085038726,-500.0,0.00016438,2]
[390563151,1760085038736,-500.0,0.00016438,2]
[390563152,1760085038746,-500.0,0.00016438,2]
[390563153,1760085038756,-500.0,0.00016438,2]
[390563154,1760085038766,-500.0,0.00016438,2]
[390563155,1760085038776,-500.0,0.00016438,2]
[390563156,1760085038786,-500.0,0.00016438,2]
[390563157,1760085038796,-880.45,0.00016438,2]
[390563158,1760085038805,-500.0,0.00016438,2]
[390563159,1760085038815,-500.0,0.00016438,2]
[390563160,1760085038824,-500.0,0.00016438,2]
[390563161,1760085038834,-500.0,0.00016438,2]
[390563162,1760085038843,-500.0,0.00016438,2]
[390563163,1760085038854,-500.0,0.00016438,2]
[390563164,1760085038863,-500.0,0.00016438,2]
[390563165,1760085038873,-1022.73,0.00016438,2]
[390563166,1760085038883,-500.0,0.00016438,2]
[390563167,1760085038893,-500.0,0.00016438,2]
[390563168,1760085038903,-510.22334251,0.00016438,2]
[390563169,1760085038913,-501.68338757,0.00016438,2]
[390563170,1760085038922,-500.0,0.00016438,2]
[390563171,1760085038932,-449.55092511,0.00016438,2]
[390563172,1760085038942,-1078.6,0.00016438,2]
[390563173,1760085038952,-501.44451044,0.00016438,2]
[390563174,1760085038962,-500.0,0.00016438,2]
[390563175,1760085038971,-240.5526988,0.00016438,2]
[390563176,1760085038982,-500.0,0.00016438,2]
[390563177,1760085038992,-500.44093117,0.00016438,2]
[390563178,1760085039002,-500.0,0.00016438,2]
[390563179,1760085039011,-500.0,0.00016438,2]
[390563180,1760085039021,-500.0,0.00016438,2]
[390563181,1760085039031,-500.0,0.00016438,2]
[390563182,1760085039041,-500.0,0.00016438,2]
[390563183,1760085039052,-299.33,0.00016438,2]
[390563184,1760085039063,-502.97428733,0.00016438,2]
[390563185,1760085039074,-502.01975218,0.00016438,2]
[390563186,1760085039084,-199.27098687,0.00016438,2]
[390563187,1760085039094,-500.0,0.00016438,2]
[390563188,1760085039104,-500.0,0.00016438,2]
[390563189,1760085039114,-500.0,0.00016438,2]
[390563190,1760085039129,-500.0,0.00016438,2]
[390563191,1760085039141,-500.0,0.00016438,2]
[390563192,1760085039151,-500.0,0.00016438,2]
[390563193,1760085039163,-500.0,0.00016438,2]
[390563194,1760085039173,-500.0,0.00016438,2]
[390563195,1760085039184,-500.0,0.00016438,2]
[390563196,1760085039195,-500.0,0.00016438,2]
[390563197,1760085039205,-940.74,0.00016438,2]
[390563198,1760085039214,-500.0,0.00016438,2]
[390563199,1760085039224,-500.0,0.00016438,2]
[390563200,1760085039237,-500.0,0.00016438,2]
[390563201,1760085039251,-500.0,0.00016438,2]
[390563202,1760085039265,-500.0,0.00016438,2]
[390563203,1760085039281,-1042.87,0.00016438,2]
[390563204,1760085039298,-500.0,0.00016438,2]
[390563205,1760085039311,-500.0,0.00016438,2]
[390563206,1760085039322,-971.43,0.00016438,2]
[390563207,1760085039334,-500.0,0.00016438,2]
[390563208,1760085039347,-500.0,0.00016438,2]
[390563209,1760085039358,-841.83,0.00016438,2]
[390563210,1760085039371,-500.0,0.00016438,2]